[Event "Early-Titled-Tuesday-Blitz-September-26-2023"]
[Site "Chess.com"]
[Date "2023.09.26"]
[Round "7"]
[White "Kielinkei"]
[Black "Maxterlopez"]
[Result "0-1"]
[WhiteElo "2480"]
[BlackElo "2739"]
[TimeControl "180+1"]
[EndTime "9:20:21 PDT"]
[Termination "Maxterlopez won by resignation"]

1. Nf3 {[%clk 0:03:00.9]} 1... g6 {[%clk 0:03:00]} 2. e4 {[%clk 0:03:00.2]} 2...
Bg7 {[%clk 0:03:00.9]} 3. d4 {[%clk 0:03:00.5]} 3... c5 {[%clk 0:03:00.5]} 4. c3
{[%clk 0:02:57.5]} 4... cxd4 {[%clk 0:02:58.5]} 5. cxd4 {[%clk 0:02:57.6]} 5...
d5 {[%clk 0:02:59.4]} 6. e5 {[%clk 0:02:57.2]} 6... Nc6 {[%clk 0:02:59.5]} 7.
Nc3 {[%clk 0:02:57.4]} 7... Nh6 {[%clk 0:02:54.5]} 8. Be2 {[%clk 0:02:56.6]}
8... O-O {[%clk 0:02:53.9]} 9. O-O {[%clk 0:02:56.9]} 9... Bg4 {[%clk
0:02:53.1]} 10. h3 {[%clk 0:02:47.9]} 10... Bxf3 {[%clk 0:02:53]} 11. Bxf3
{[%clk 0:02:48.2]} 11... e6 {[%clk 0:02:53.9]} 12. Be3 {[%clk 0:02:45.1]} 12...
Nf5 {[%clk 0:02:53.6]} 13. Qd2 {[%clk 0:02:43.7]} 13... Nxe5 {[%clk 0:02:38.8]}
14. dxe5 {[%clk 0:02:27.7]} 14... d4 {[%clk 0:02:39.7]} 15. Bxd4 {[%clk
0:02:24.9]} 15... Nxd4 {[%clk 0:02:39.5]} 16. Qf4 {[%clk 0:02:16.7]} 16... Nxf3+
{[%clk 0:02:27.5]} 17. Qxf3 {[%clk 0:02:17]} 17... Qb6 {[%clk 0:02:28.4]} 18.
Qe2 {[%clk 0:02:14.6]} 18... Rfd8 {[%clk 0:02:17]} 19. Rfd1 {[%clk 0:02:14.2]}
19... Qc5 {[%clk 0:02:17.4]} 20. Rxd8+ {[%clk 0:02:09.8]} 20... Rxd8 {[%clk
0:02:17]} 21. Re1 {[%clk 0:02:10.5]} 21... a6 {[%clk 0:02:12.9]} 22. h4 {[%clk
0:02:00.7]} 22... h5 {[%clk 0:02:04.9]} 23. a3 {[%clk 0:01:39.7]} 23... b5
{[%clk 0:02:01.4]} 24. g3 {[%clk 0:01:27.1]} 24... Rd4 {[%clk 0:01:32.3]} 25.
Kh2 {[%clk 0:01:14.3]} 25... b4 {[%clk 0:00:58.9]} 26. axb4 {[%clk 0:01:12.9]}
26... Rxb4 {[%clk 0:00:59.8]} 27. Ne4 {[%clk 0:00:44.2]} 27... Qxe5 {[%clk
0:00:56.6]} 28. Qxa6 {[%clk 0:00:42.9]} 28... Qxb2 {[%clk 0:00:52]} 29. Qc8+
{[%clk 0:00:36.4]} 29... Bf8 {[%clk 0:00:49.6]} 30. Kg2 {[%clk 0:00:23.9]} 30...
Rb8 {[%clk 0:00:34.3]} 31. Qd7 {[%clk 0:00:16.6]} 31... Qb7 {[%clk 0:00:33.2]}
32. Qxb7 {[%clk 0:00:10.9]} 32... Rxb7 {[%clk 0:00:34.1]} 33. Rd1 {[%clk
0:00:10.2]} 33... Be7 {[%clk 0:00:32.7]} 34. Ra1 {[%clk 0:00:08.6]} 34... Kg7
{[%clk 0:00:31.4]} 35. Ra2 {[%clk 0:00:09]} 35... e5 {[%clk 0:00:31.1]} 36. Ng5
{[%clk 0:00:09.1]} 36... f6 {[%clk 0:00:25.9]} 37. Ne4 {[%clk 0:00:08.1]} 37...
Rb4 {[%clk 0:00:25.3]} 38. Re2 {[%clk 0:00:06.6]} 38... Kf7 {[%clk 0:00:24.8]}
39. Nc3 {[%clk 0:00:06.9]} 39... Rb3 {[%clk 0:00:24.5]} 40. Nd5 {[%clk
0:00:06.5]} 40... Bc5 {[%clk 0:00:24.8]} 41. Ra2 {[%clk 0:00:06.4]} 41... Ke6
{[%clk 0:00:23.5]} 42. Nc7+ {[%clk 0:00:04.6]} 42... Kf5 {[%clk 0:00:22.5]} 43.
Nd5 {[%clk 0:00:04.2]} 43... Rd3 {[%clk 0:00:19.8]} 44. Nc7 {[%clk 0:00:03.9]}
44... Bd4 {[%clk 0:00:17.5]} 45. Ra6 {[%clk 0:00:02.9]} 45... Bc3 {[%clk
0:00:10.8]} 46. Ne8 {[%clk 0:00:02.8]} 46... e4 {[%clk 0:00:11.3]} 47. Nd6+
{[%clk 0:00:02.5]} 47... Ke5 {[%clk 0:00:10.4]} 48. Nc4+ {[%clk 0:00:03.1]}
48... Kd4 {[%clk 0:00:10.5]} 49. Ne3 {[%clk 0:00:03.9]} 49... Kc5 {[%clk
0:00:09.1]} 50. Ra8 {[%clk 0:00:02.3]} 50... Bd4 {[%clk 0:00:09.4]} 51. Rc8+
{[%clk 0:00:02.7]} 51... Kb6 {[%clk 0:00:10]} 52. Nd5+ {[%clk 0:00:02.9]} 52...
Kb7 {[%clk 0:00:10.1]} 53. Rc7+ {[%clk 0:00:02.4]} 53... Kb8 {[%clk 0:00:10.7]}
54. Rc4 {[%clk 0:00:03.1]} 54... Rd2 {[%clk 0:00:10.8]} 55. Rb4+ {[%clk
0:00:01.9]} 55... Kc8 {[%clk 0:00:10.3]} 56. Ne7+ {[%clk 0:00:01.2]} 56... Kd7
{[%clk 0:00:10.1]} 57. Nxg6 {[%clk 0:00:02.1]} 57... Bxf2 {[%clk 0:00:09.8]} 58.
Kh3 {[%clk 0:00:01.4]} 58... f5 {[%clk 0:00:10.4]} 59. Nf4 {[%clk 0:00:02]}
59... Bg1 {[%clk 0:00:10.9]} 60. Rb7+ {[%clk 0:00:02.6]} 60... Kc8 {[%clk
0:00:10.9]} 61. Ng2 {[%clk 0:00:03]} 61... Kxb7 {[%clk 0:00:10.7]} 62. g4 {[%clk
0:00:03.4]} 62... Rd3+ {[%clk 0:00:10.8]} 63. Ne3 {[%clk 0:00:02.1]} 63... Rxe3+
{[%clk 0:00:11.3]} 64. Kg2 {[%clk 0:00:03]} 64... fxg4 {[%clk 0:00:11.7]} 65.
Kxg1 {[%clk 0:00:03.2]} 65... Rf3 {[%clk 0:00:12.6]} 0-1

[Event "Early-Titled-Tuesday-Blitz-September-26-2023"]
[Site "Chess.com"]
[Date "2023.09.26"]
[Round "7"]
[White "Alexei_Gubajdullin"]
[Black "elegant285"]
[Result "1-0"]
[WhiteElo "2704"]
[BlackElo "2385"]
[TimeControl "180+1"]
[EndTime "9:20:24 PDT"]
[Termination "Alexei_Gubajdullin won by resignation"]

1. d4 {[%clk 0:02:59.4]} 1... Nf6 {[%clk 0:02:59.8]} 2. Nf3 {[%clk 0:02:59.3]}
2... d5 {[%clk 0:02:59.3]} 3. Bf4 {[%clk 0:02:59.4]} 3... c6 {[%clk 0:02:59]} 4.
e3 {[%clk 0:02:59.8]} 4... g6 {[%clk 0:02:58.3]} 5. Nbd2 {[%clk 0:02:58.1]} 5...
Bg7 {[%clk 0:02:59]} 6. Be2 {[%clk 0:02:58.1]} 6... O-O {[%clk 0:02:58.2]} 7.
O-O {[%clk 0:02:58.1]} 7... Bf5 {[%clk 0:02:58.3]} 8. c4 {[%clk 0:02:57.7]} 8...
Ne4 {[%clk 0:02:58.1]} 9. Qb3 {[%clk 0:02:57]} 9... Nxd2 {[%clk 0:02:48.4]} 10.
Nxd2 {[%clk 0:02:56.7]} 10... Qd7 {[%clk 0:02:40.5]} 11. Nf3 {[%clk 0:02:46.1]}
11... Na6 {[%clk 0:02:33.8]} 12. Ne5 {[%clk 0:02:44.4]} 12... Qc8 {[%clk
0:02:25.6]} 13. cxd5 {[%clk 0:02:43.2]} 13... Bxe5 {[%clk 0:02:15.6]} 14. Bxe5
{[%clk 0:02:41.1]} 14... cxd5 {[%clk 0:02:16.2]} 15. Qxd5 {[%clk 0:02:32.4]}
15... Nb4 {[%clk 0:02:15.6]} 16. Qb3 {[%clk 0:02:30.1]} 16... Nc6 {[%clk
0:02:03.4]} 17. Rac1 {[%clk 0:02:27.8]} 17... Qd7 {[%clk 0:01:56.3]} 18. Bg3
{[%clk 0:02:22.2]} 18... a6 {[%clk 0:01:55.4]} 19. Rfd1 {[%clk 0:02:16]} 19...
Rac8 {[%clk 0:01:47.4]} 20. Qb6 {[%clk 0:02:09.8]} 20... Be4 {[%clk 0:01:40.1]}
21. b3 {[%clk 0:01:59.9]} 21... Bd5 {[%clk 0:01:22.2]} 22. f3 {[%clk 0:01:49.5]}
22... f6 {[%clk 0:01:21.2]} 23. e4 {[%clk 0:01:48]} 23... Bf7 {[%clk 0:01:20.8]}
24. d5 {[%clk 0:01:48.1]} 24... Nb8 {[%clk 0:01:12.8]} 25. Rc7 {[%clk
0:01:43.3]} 25... Rxc7 {[%clk 0:01:11.6]} 26. Qxc7 {[%clk 0:01:43.3]} 26... Qxc7
{[%clk 0:01:10.4]} 27. Bxc7 {[%clk 0:01:42.8]} 27... Nd7 {[%clk 0:01:11.3]} 28.
Rc1 {[%clk 0:01:41]} 28... Rc8 {[%clk 0:01:11.5]} 29. Bf4 {[%clk 0:01:40.3]}
29... Rxc1+ {[%clk 0:01:11.9]} 30. Bxc1 {[%clk 0:01:40.1]} 30... e6 {[%clk
0:01:11.4]} 31. dxe6 {[%clk 0:01:36.5]} 31... Bxe6 {[%clk 0:01:12.3]} 32. h4
{[%clk 0:01:36.3]} 32... Kf7 {[%clk 0:01:07.5]} 33. Be3 {[%clk 0:01:36]} 33...
Ke7 {[%clk 0:01:06.8]} 34. Kf2 {[%clk 0:01:35.4]} 34... Kd6 {[%clk 0:01:07.2]}
35. Bd4 {[%clk 0:01:34.8]} 35... f5 {[%clk 0:01:05]} 36. exf5 {[%clk 0:01:34.7]}
36... Bxf5 {[%clk 0:01:05.9]} 37. Ke3 {[%clk 0:01:34.6]} 37... Bb1 {[%clk
0:01:05.3]} 38. a3 {[%clk 0:01:32.3]} 38... Nf8 {[%clk 0:01:03.5]} 39. Kf4
{[%clk 0:01:31.2]} 39... Ne6+ {[%clk 0:01:03.2]} 40. Ke3 {[%clk 0:01:31.3]}
40... b5 {[%clk 0:00:57.4]} 41. Bc3 {[%clk 0:01:27.9]} 41... Bc2 {[%clk
0:00:51.1]} 42. b4 {[%clk 0:01:24.2]} 42... Nc7 {[%clk 0:00:51.3]} 43. Bg7
{[%clk 0:01:19.8]} 43... Ne6 {[%clk 0:00:49.5]} 44. Bf6 {[%clk 0:01:16.5]} 44...
Kd5 {[%clk 0:00:46.4]} 45. g4 {[%clk 0:01:11.9]} 45... Bb1 {[%clk 0:00:36.3]}
46. h5 {[%clk 0:01:08.9]} 46... gxh5 {[%clk 0:00:35.4]} 47. gxh5 {[%clk
0:01:08.9]} 47... Nc7 {[%clk 0:00:36.1]} 48. h6 {[%clk 0:01:07.3]} 48... Ne8
{[%clk 0:00:36.6]} 49. Bg7 {[%clk 0:01:05.7]} 49... Nd6 {[%clk 0:00:36.1]} 50.
f4 {[%clk 0:01:00.6]} 50... Nf5+ {[%clk 0:00:33.9]} 51. Kd2 {[%clk 0:01:00.4]}
51... Ke4 {[%clk 0:00:32]} 52. Bf8 {[%clk 0:00:50.9]} 52... Kxf4 {[%clk
0:00:30.1]} 53. a4 {[%clk 0:00:50.6]} 53... bxa4 {[%clk 0:00:27.9]} 54. Bxa6
{[%clk 0:00:49.8]} 54... a3 {[%clk 0:00:28.4]} 55. Kc3 {[%clk 0:00:48.4]} 55...
Ne3 {[%clk 0:00:25.8]} 56. Kb3 {[%clk 0:00:40.6]} 56... a2 {[%clk 0:00:23.6]}
57. Bg7 {[%clk 0:00:40.3]} 57... Nf5 {[%clk 0:00:20.7]} 58. Ba1 {[%clk
0:00:36.2]} 58... Nxh6 {[%clk 0:00:20.8]} 59. b5 {[%clk 0:00:36.2]} 59... Nf7
{[%clk 0:00:20.2]} 60. b6 {[%clk 0:00:34.6]} 60... Nd8 {[%clk 0:00:20.7]} 61.
Bf6 {[%clk 0:00:24.1]} 61... h5 {[%clk 0:00:18.6]} 62. Kb2 {[%clk 0:00:23.3]}
62... Nc6 {[%clk 0:00:17.8]} 63. Bb5 {[%clk 0:00:22.2]} 63... Nb8 {[%clk
0:00:17.5]} 64. Bd8 {[%clk 0:00:22.3]} 64... Ke4 {[%clk 0:00:14.3]} 65. Bc7
{[%clk 0:00:21.8]} 65... h4 {[%clk 0:00:15]} 66. Bxb8 {[%clk 0:00:20.9]} 66...
h3 {[%clk 0:00:15.9]} 67. b7 {[%clk 0:00:21]} 67... h2 {[%clk 0:00:15.9]} 68.
Bxh2 {[%clk 0:00:20.3]} 68... a1=Q+ {[%clk 0:00:15.7]} 69. Kxa1 {[%clk
0:00:20.3]} 69... Kd4 {[%clk 0:00:16.6]} 70. b8=Q {[%clk 0:00:20.5]} 1-0

[Event "Early-Titled-Tuesday-Blitz-September-26-2023"]
[Site "Chess.com"]
[Date "2023.09.26"]
[Round "7"]
[White "FoxOnTheRun97"]
[Black "Hasangatin_Ramil"]
[Result "0-1"]
[WhiteElo "2547"]
[BlackElo "2710"]
[TimeControl "180+1"]
[EndTime "9:20:26 PDT"]
[Termination "Hasangatin_Ramil won on time"]

1. d4 {[%clk 0:03:00.9]} 1... d6 {[%clk 0:02:55]} 2. c4 {[%clk 0:03:00.7]} 2...
e5 {[%clk 0:02:55.1]} 3. dxe5 {[%clk 0:02:57.5]} 3... dxe5 {[%clk 0:02:56]} 4.
Qxd8+ {[%clk 0:02:57.6]} 4... Kxd8 {[%clk 0:02:56.9]} 5. Nc3 {[%clk 0:02:57.7]}
5... Be6 {[%clk 0:02:57.1]} 6. e4 {[%clk 0:02:49.1]} 6... Nd7 {[%clk 0:02:55.3]}
7. Nf3 {[%clk 0:02:45.8]} 7... f6 {[%clk 0:02:54.6]} 8. Be3 {[%clk 0:02:25.6]}
8... c6 {[%clk 0:02:55.5]} 9. Be2 {[%clk 0:02:23.4]} 9... a5 {[%clk 0:02:53.9]}
10. Rg1 {[%clk 0:02:14.9]} 10... Bc5 {[%clk 0:02:53.1]} 11. g4 {[%clk
0:02:09.3]} 11... g5 {[%clk 0:02:46.2]} 12. O-O-O {[%clk 0:01:40.3]} 12... Bxe3+
{[%clk 0:02:37]} 13. fxe3 {[%clk 0:01:41.2]} 13... Ne7 {[%clk 0:02:35.5]} 14. h4
{[%clk 0:01:41.1]} 14... h6 {[%clk 0:02:35]} 15. Rh1 {[%clk 0:01:40.6]} 15...
Kc7 {[%clk 0:02:29.1]} 16. Rdg1 {[%clk 0:01:33.7]} 16... Nc5 {[%clk 0:02:28.5]}
17. b3 {[%clk 0:01:24]} 17... Ng6 {[%clk 0:02:24.1]} 18. h5 {[%clk 0:01:17.3]}
18... Ne7 {[%clk 0:02:21.7]} 19. Nd2 {[%clk 0:01:15.5]} 19... Rhf8 {[%clk
0:02:12.6]} 20. Nf1 {[%clk 0:01:14.6]} 20... Rad8 {[%clk 0:02:02.2]} 21. Ng3
{[%clk 0:01:11]} 21... a4 {[%clk 0:01:59.8]} 22. Kc2 {[%clk 0:01:07.9]} 22...
axb3+ {[%clk 0:01:56.6]} 23. axb3 {[%clk 0:01:08.8]} 23... Na6 {[%clk
0:01:57.2]} 24. Rd1 {[%clk 0:01:05.7]} 24... Nc8 {[%clk 0:01:53.5]} 25. Rhf1
{[%clk 0:01:03.7]} 25... Rxd1 {[%clk 0:01:43.3]} 26. Nxd1 {[%clk 0:00:53.5]}
26... Nd6 {[%clk 0:01:40.5]} 27. Nc3 {[%clk 0:00:50.8]} 27... b6 {[%clk
0:01:36]} 28. Nf5 {[%clk 0:00:49.7]} 28... Bxf5 {[%clk 0:01:31.1]} 29. exf5
{[%clk 0:00:50.6]} 29... e4 {[%clk 0:01:27.8]} 30. Rd1 {[%clk 0:00:47.8]} 30...
Re8 {[%clk 0:01:20.6]} 31. Kb2 {[%clk 0:00:44.4]} 31... Re5 {[%clk 0:01:17.2]}
32. Na2 {[%clk 0:00:38.2]} 32... Nb7 {[%clk 0:01:01.3]} 33. Kc3 {[%clk
0:00:34.8]} 33... Re7 {[%clk 0:01:00.5]} 34. b4 {[%clk 0:00:30]} 34... Nd6
{[%clk 0:00:55.8]} 35. Nc1 {[%clk 0:00:27.2]} 35... c5 {[%clk 0:00:54.2]} 36.
bxc5 {[%clk 0:00:24.1]} 36... bxc5 {[%clk 0:00:51]} 37. Nb3 {[%clk 0:00:24.1]}
37... Nb7 {[%clk 0:00:49.2]} 38. Rd5 {[%clk 0:00:21.8]} 38... Rd7 {[%clk
0:00:48.3]} 39. Bd1 {[%clk 0:00:17.6]} 39... Rxd5 {[%clk 0:00:45.6]} 40. cxd5
{[%clk 0:00:18.5]} 40... Nd6 {[%clk 0:00:33.9]} 41. Nd2 {[%clk 0:00:16.1]} 41...
Nb4 {[%clk 0:00:28.5]} 42. Bc2 {[%clk 0:00:15.2]} 42... Nxd5+ {[%clk 0:00:27.6]}
43. Kb3 {[%clk 0:00:14.4]} 43... Nxe3 {[%clk 0:00:27.3]} 44. Bxe4 {[%clk
0:00:14.5]} 44... Nxg4 {[%clk 0:00:24.5]} 45. Bc2 {[%clk 0:00:12.2]} 45... Ne3
{[%clk 0:00:24]} 46. Kc3 {[%clk 0:00:08.8]} 46... Nexf5 {[%clk 0:00:21.6]} 47.
Bxf5 {[%clk 0:00:07.7]} 47... Nxf5 {[%clk 0:00:22.5]} 48. Ne4 {[%clk 0:00:08.3]}
48... g4 {[%clk 0:00:19.3]} 49. Nxf6 {[%clk 0:00:04.2]} 49... g3 {[%clk
0:00:18.3]} 50. Nd5+ {[%clk 0:00:04.8]} 50... Kd6 {[%clk 0:00:18.2]} 51. Nf4
{[%clk 0:00:05.7]} 51... Ke5 {[%clk 0:00:18.2]} 52. Ng2 {[%clk 0:00:05.7]} 52...
Ke4 {[%clk 0:00:18.4]} 53. Kd2 {[%clk 0:00:05.3]} 53... Kf3 {[%clk 0:00:18.4]}
54. Ne1+ {[%clk 0:00:06]} 54... Kg4 {[%clk 0:00:18.5]} 55. Ke2 {[%clk
0:00:05.2]} 55... Nd4+ {[%clk 0:00:18.2]} 56. Kf1 {[%clk 0:00:05.2]} 56... Kxh5
{[%clk 0:00:18.3]} 57. Ng2 {[%clk 0:00:03.2]} 57... Kg4 {[%clk 0:00:17.9]} 58.
Kg1 {[%clk 0:00:02.8]} 58... h5 {[%clk 0:00:17.7]} 59. Kh1 {[%clk 0:00:03.1]}
59... h4 {[%clk 0:00:17.7]} 60. Kg1 {[%clk 0:00:03.7]} 60... h3 {[%clk
0:00:17.8]} 61. Ne3+ {[%clk 0:00:04.3]} 61... Kf3 {[%clk 0:00:17.3]} 62. Nf1
{[%clk 0:00:04.9]} 62... Ne2+ {[%clk 0:00:16.7]} 63. Kh1 {[%clk 0:00:03.9]}
63... c4 {[%clk 0:00:12.8]} 64. Nd2+ {[%clk 0:00:02.5]} 64... Kg4 {[%clk
0:00:12.7]} 0-1

[Event "Early-Titled-Tuesday-Blitz-September-26-2023"]
[Site "Chess.com"]
[Date "2023.09.26"]
[Round "7"]
[White "PawnEatingZombie"]
[Black "PattyCastillo"]
[Result "1-0"]
[WhiteElo "2149"]
[BlackElo "1873"]
[TimeControl "180+1"]
[EndTime "9:20:26 PDT"]
[Termination "PawnEatingZombie won on time"]

1. e4 {[%clk 0:03:00.9]} 1... c5 {[%clk 0:02:59.4]} 2. c3 {[%clk 0:03:00.5]}
2... d5 {[%clk 0:02:46.6]} 3. exd5 {[%clk 0:02:59.7]} 3... Qxd5 {[%clk
0:02:47.5]} 4. d4 {[%clk 0:02:59.5]} 4... Nf6 {[%clk 0:02:47.7]} 5. Nf3 {[%clk
0:02:59.2]} 5... Bg4 {[%clk 0:02:47.9]} 6. Be2 {[%clk 0:02:44.8]} 6... Nc6
{[%clk 0:02:45.8]} 7. Be3 {[%clk 0:02:44.4]} 7... cxd4 {[%clk 0:02:44.9]} 8.
cxd4 {[%clk 0:02:42.7]} 8... e6 {[%clk 0:02:43.8]} 9. O-O {[%clk 0:02:40.6]}
9... Be7 {[%clk 0:02:40.7]} 10. Nc3 {[%clk 0:02:40.5]} 10... Qd8 {[%clk
0:02:38.1]} 11. Qa4 {[%clk 0:02:34.8]} 11... O-O {[%clk 0:02:33.8]} 12. Rfd1
{[%clk 0:02:34.7]} 12... Nd5 {[%clk 0:02:26.3]} 13. Nxd5 {[%clk 0:02:32.4]}
13... exd5 {[%clk 0:02:19.1]} 14. h3 {[%clk 0:02:30.7]} 14... Bh5 {[%clk
0:02:14.5]} 15. Bf4 {[%clk 0:02:15.5]} 15... Bf6 {[%clk 0:02:10.4]} 16. g4
{[%clk 0:02:11.9]} 16... Bg6 {[%clk 0:02:09.5]} 17. Ne5 {[%clk 0:02:08.9]} 17...
Qb6 {[%clk 0:01:45.2]} 18. Qb5 {[%clk 0:01:44.4]} 18... Bxe5 {[%clk 0:01:38.2]}
19. dxe5 {[%clk 0:01:42.4]} 19... Qxb5 {[%clk 0:01:14.7]} 20. Bxb5 {[%clk
0:01:41.7]} 20... Be4 {[%clk 0:01:15.2]} 21. Rac1 {[%clk 0:01:29.9]} 21... Rac8
{[%clk 0:01:14.3]} 22. Bxc6 {[%clk 0:01:27.9]} 22... bxc6 {[%clk 0:01:12.9]} 23.
Rc5 {[%clk 0:01:26.1]} 23... Rfe8 {[%clk 0:01:08.7]} 24. Rd4 {[%clk 0:01:24.8]}
24... Bf3 {[%clk 0:01:03.5]} 25. b3 {[%clk 0:01:20.3]} 25... h6 {[%clk
0:01:00.7]} 26. Kh2 {[%clk 0:01:19.8]} 26... g5 {[%clk 0:01:00.5]} 27. Bg3
{[%clk 0:01:16.9]} 27... Kg7 {[%clk 0:00:53.7]} 28. Rd3 {[%clk 0:01:10.9]} 28...
Be4 {[%clk 0:00:50.6]} 29. Re3 {[%clk 0:01:08.9]} 29... Bb1 {[%clk 0:00:43.9]}
30. a3 {[%clk 0:01:03.5]} 30... d4 {[%clk 0:00:40.8]} 31. Re1 {[%clk 0:01:02.4]}
31... Bg6 {[%clk 0:00:34.9]} 32. Rd1 {[%clk 0:00:59.6]} 32... d3 {[%clk
0:00:35.2]} 33. f4 {[%clk 0:00:54.8]} 33... gxf4 {[%clk 0:00:33.9]} 34. Bxf4
{[%clk 0:00:55.7]} 34... Re6 {[%clk 0:00:32.8]} 35. Kg3 {[%clk 0:00:52.2]} 35...
Rd8 {[%clk 0:00:31]} 36. Rd2 {[%clk 0:00:52.1]} 36... Rd5 {[%clk 0:00:24.9]} 37.
Rxd5 {[%clk 0:00:50.1]} 37... cxd5 {[%clk 0:00:25.8]} 38. Kf2 {[%clk 0:00:43]}
38... Be4 {[%clk 0:00:25.6]} 39. Ke3 {[%clk 0:00:39.7]} 39... Rc6 {[%clk
0:00:23.8]} 40. h4 {[%clk 0:00:35.4]} 40... Rc2 {[%clk 0:00:22.5]} 41. b4 {[%clk
0:00:33.3]} 41... Rc3 {[%clk 0:00:14.6]} 42. Ra2 {[%clk 0:00:27.1]} 42... Rc2
{[%clk 0:00:12.8]} 43. Rxc2 {[%clk 0:00:26.1]} 43... dxc2 {[%clk 0:00:13.7]} 44.
Kd2 {[%clk 0:00:26.4]} 44... Kg6 {[%clk 0:00:13.1]} 45. a4 {[%clk 0:00:24.6]}
45... d4 {[%clk 0:00:12.2]} 46. b5 {[%clk 0:00:22.9]} 46... d3 {[%clk
0:00:12.2]} 47. a5 {[%clk 0:00:21.8]} 47... Bd5 {[%clk 0:00:10]} 48. b6 {[%clk
0:00:17.6]} 48... axb6 {[%clk 0:00:10.5]} 49. axb6 {[%clk 0:00:17.3]} 49... Bb7
{[%clk 0:00:10.9]} 50. Kxd3 {[%clk 0:00:16]} 50... h5 {[%clk 0:00:05.2]} 51.
gxh5+ {[%clk 0:00:14.9]} 51... Kxh5 {[%clk 0:00:05.2]} 52. Bg5 {[%clk
0:00:13.8]} 52... c1=Q {[%clk 0:00:05.6]} 53. Bxc1 {[%clk 0:00:13.3]} 53... Kxh4
{[%clk 0:00:06.5]} 54. Kd4 {[%clk 0:00:13.3]} 54... Kg4 {[%clk 0:00:07.2]} 55.
Kc5 {[%clk 0:00:13.4]} 55... Kf5 {[%clk 0:00:07.7]} 56. Kd6 {[%clk 0:00:11.4]}
56... f6 {[%clk 0:00:06.1]} 57. e6 {[%clk 0:00:11.2]} 57... Kg6 {[%clk
0:00:04.8]} 58. e7 {[%clk 0:00:10.5]} 58... Kf7 {[%clk 0:00:05.5]} 59. Kd7
{[%clk 0:00:11.1]} 1-0

[Event "Early-Titled-Tuesday-Blitz-September-26-2023"]
[Site "Chess.com"]
[Date "2023.09.26"]
[Round "7"]
[White "OparinGrigoriy"]
[Black "Incognito_Knight"]
[Result "1/2-1/2"]
[WhiteElo "2959"]
[BlackElo "2768"]
[TimeControl "180+1"]
[EndTime "9:20:27 PDT"]
[Termination "Game drawn by repetition"]

1. d4 {[%clk 0:03:00.9]} 1... Nf6 {[%clk 0:02:48.1]} 2. Nf3 {[%clk 0:03:01.8]}
2... e6 {[%clk 0:02:45.8]} 3. c4 {[%clk 0:03:02.3]} 3... d5 {[%clk 0:02:46.5]}
4. g3 {[%clk 0:03:02.8]} 4... Be7 {[%clk 0:02:42]} 5. Bg2 {[%clk 0:03:03]} 5...
O-O {[%clk 0:02:42.8]} 6. Nc3 {[%clk 0:03:02.6]} 6... c6 {[%clk 0:02:39.4]} 7.
b3 {[%clk 0:03:00.6]} 7... b6 {[%clk 0:02:36.4]} 8. O-O {[%clk 0:03:00.5]} 8...
Ba6 {[%clk 0:02:25.9]} 9. Qd3 {[%clk 0:03:01]} 9... Nbd7 {[%clk 0:02:24.8]} 10.
e4 {[%clk 0:03:01]} 10... dxc4 {[%clk 0:02:19.7]} 11. bxc4 {[%clk 0:03:00.7]}
11... e5 {[%clk 0:01:42.9]} 12. Rd1 {[%clk 0:02:50.1]} 12... exd4 {[%clk
0:01:41.3]} 13. Nxd4 {[%clk 0:02:51]} 13... Ne5 {[%clk 0:01:40.4]} 14. Qc2
{[%clk 0:02:49.8]} 14... Qc8 {[%clk 0:01:37]} 15. f4 {[%clk 0:02:42.1]} 15...
Nxc4 {[%clk 0:01:35.6]} 16. e5 {[%clk 0:02:42.7]} 16... Ng4 {[%clk 0:01:23.6]}
17. Qe4 {[%clk 0:02:18.5]} 17... f5 {[%clk 0:01:12]} 18. Qxc6 {[%clk 0:01:57]}
18... Qxc6 {[%clk 0:01:01.7]} 19. Bxc6 {[%clk 0:01:57.9]} 19... Rad8 {[%clk
0:01:01.4]} 20. Bd5+ {[%clk 0:01:45.7]} 20... Kh8 {[%clk 0:00:59.8]} 21. Ne6
{[%clk 0:01:46.4]} 21... Nce3 {[%clk 0:00:38.2]} 22. Bxe3 {[%clk 0:01:47]} 22...
Nxe3 {[%clk 0:00:38.1]} 23. Nxf8 {[%clk 0:01:45.3]} 23... Bxf8 {[%clk
0:00:26.5]} 24. Bb3 {[%clk 0:01:13.2]} 24... Nxd1 {[%clk 0:00:25.4]} 25. Rxd1
{[%clk 0:01:14.1]} 25... Bc5+ {[%clk 0:00:23.4]} 26. Kg2 {[%clk 0:01:13.9]}
26... Rxd1 {[%clk 0:00:17.5]} 27. Nxd1 {[%clk 0:01:14.4]} 27... Bd4 {[%clk
0:00:17.3]} 28. Kf3 {[%clk 0:01:09.6]} 28... g6 {[%clk 0:00:11.7]} 29. Ne3
{[%clk 0:01:09.8]} 29... Kg7 {[%clk 0:00:08.9]} 30. Bd5 {[%clk 0:01:07.9]} 30...
Bd3 {[%clk 0:00:07.8]} 31. h3 {[%clk 0:00:57.4]} 31... h6 {[%clk 0:00:08.1]} 32.
g4 {[%clk 0:00:51.6]} 32... a5 {[%clk 0:00:07.7]} 33. Be6 {[%clk 0:00:45.8]}
33... Be4+ {[%clk 0:00:05.5]} 34. Ke2 {[%clk 0:00:44.5]} 34... fxg4 {[%clk
0:00:06]} 35. hxg4 {[%clk 0:00:45.4]} 35... g5 {[%clk 0:00:06.2]} 36. fxg5
{[%clk 0:00:29.9]} 36... hxg5 {[%clk 0:00:07.1]} 37. Bf5 {[%clk 0:00:20.5]}
37... Bxe3 {[%clk 0:00:07.3]} 38. Bxe4 {[%clk 0:00:10.9]} 38... Bf4 {[%clk
0:00:06.7]} 39. e6 {[%clk 0:00:11.3]} 39... Kf6 {[%clk 0:00:07.5]} 40. Bd5
{[%clk 0:00:10.5]} 40... Ke7 {[%clk 0:00:07.4]} 41. Kd3 {[%clk 0:00:10.8]} 41...
Bd6 {[%clk 0:00:07.1]} 42. a4 {[%clk 0:00:10.8]} 42... Bc5 {[%clk 0:00:07.1]}
43. Bc4 {[%clk 0:00:11.2]} 43... Bd6 {[%clk 0:00:07.6]} 44. Ke4 {[%clk
0:00:12.1]} 44... Bc5 {[%clk 0:00:07.7]} 45. Ke5 {[%clk 0:00:12.2]} 45... Bd6+
{[%clk 0:00:07.7]} 46. Kd5 {[%clk 0:00:12.2]} 46... Bc5 {[%clk 0:00:07.9]} 47.
Bb5 {[%clk 0:00:12.8]} 47... Bd6 {[%clk 0:00:08.3]} 48. Bd7 {[%clk 0:00:13]}
48... Bc5 {[%clk 0:00:08.4]} 49. Kc6 {[%clk 0:00:13.6]} 49... Be3 {[%clk
0:00:08.9]} 50. Kb5 {[%clk 0:00:13.8]} 50... Bc5 {[%clk 0:00:08.9]} 51. Kc4
{[%clk 0:00:14.7]} 51... Bd6 {[%clk 0:00:09.3]} 52. Kd3 {[%clk 0:00:15.6]} 52...
Bc5 {[%clk 0:00:09.6]} 53. Ke4 {[%clk 0:00:16.4]} 53... Bd6 {[%clk 0:00:10.5]}
54. Kf5 {[%clk 0:00:17.3]} 54... Bf4 {[%clk 0:00:10.7]} 55. Kg6 {[%clk 0:00:18]}
55... Be3 {[%clk 0:00:11.3]} 56. Bb5 {[%clk 0:00:17.4]} 56... Bf4 {[%clk
0:00:11.5]} 57. Bd7 {[%clk 0:00:17.1]} 57... Be3 {[%clk 0:00:12.1]} 58. Bb5
{[%clk 0:00:17.6]} 58... Kxe6 {[%clk 0:00:11.7]} 59. Kh5 {[%clk 0:00:17.3]}
59... Kf6 {[%clk 0:00:11.7]} 60. Be8 {[%clk 0:00:17.8]} 60... Bf4 {[%clk
0:00:11.8]} 61. Bb5 {[%clk 0:00:18.7]} 61... Be3 {[%clk 0:00:11.8]} 62. Bc6
{[%clk 0:00:19.3]} 62... Ke5 {[%clk 0:00:11.6]} 63. Bb5 {[%clk 0:00:20.2]} 63...
Bf4 {[%clk 0:00:12.2]} 64. Be8 {[%clk 0:00:20.8]} 64... Kd6 {[%clk 0:00:12.5]}
65. Bb5 {[%clk 0:00:21.7]} 65... Kc5 {[%clk 0:00:13.1]} 66. Kg6 {[%clk
0:00:21.8]} 66... Kd6 {[%clk 0:00:13.3]} 67. Kf5 {[%clk 0:00:22.7]} 67... Kc5
{[%clk 0:00:14]} 68. Be8 {[%clk 0:00:23.1]} 68... Kd6 {[%clk 0:00:14.4]} 69. Bb5
{[%clk 0:00:24]} 69... Ke7 {[%clk 0:00:15]} 70. Bc6 {[%clk 0:00:24.1]} 70... Kd6
{[%clk 0:00:15.5]} 71. Bb5 {[%clk 0:00:25]} 1/2-1/2